bitfinex/quotes_ETHUSD_20250620
["timestamp","ask_amount","ask_price","bid_price","bid_amount"]
[1750461791001,17.99575398,2399.9,2399.8,4.16701202]
[1750461791303,17.60642317,2399.9,2399.8,4.16701202]
[1750461791461,17.99574488,2399.9,2399.8,4.16701202]
[1750461791662,17.99574784,2399.9,2399.8,4.16701202]
[1750461791863,17.99579277,2399.9,2399.8,4.16701202]
[1750461792281,17.99583029,2399.9,2399.8,4.16701202]
[1750461792657,17.93537284,2399.9,2399.8,4.16701202]
[1750461793925,17.93551538,2399.9,2399.8,4.16701202]
[1750461794116,17.93551324,2399.9,2399.8,4.16701202]
[1750461795463,17.93547182,2399.9,2399.8,4.16701202]
[1750461795663,17.99597182,2399.9,2399.8,4.16701202]
[1750461796404,17.99612032,2399.9,2399.8,4.16701202]
[1750461796605,17.99664959,2399.9,2399.8,4.16701202]
[1750461796809,17.99665713,2399.9,2399.8,4.16701202]
[1750461797703,17.9970365,2399.9,2399.8,4.16701202]
[1750461798293,11.0740365,2399.9,2399.8,4.16701202]
[1750461798485,17.9930365,2399.9,2399.8,4.16701202]
[1750461798661,17.9327485,2399.9,2399.8,4.16701202]
[1750461798858,1.0137485,2399.9,2399.8,5.77753173]
[1750461799080,1.0137485,2399.9,2399.8,4.16701202]
[1750461799081,7.75944302,2399.9,2399.8,4.16701202]
[1750461799312,7.75946615,2399.9,2399.8,4.16701202]
[1750461799908,17.75946615,2399.9,2399.8,4.16701202]
[1750461800292,17.99469211,2399.9,2399.8,4.16701202]
[1750461800710,17.99497328,2399.9,2399.8,4.16701202]
[1750461800909,17.99498294,2399.9,2399.8,4.16701202]
[1750461801136,17.99500573,2399.9,2399.8,4.16701202]
[1750461801688,17.9950128,2399.9,2399.8,4.16701202]
[1750461801892,17.99501335,2399.9,2399.8,4.16701202]
[1750461802288,17.99501606,2399.9,2399.8,4.16701202]
[1750461802488,17.99503946,2399.9,2399.8,4.16701202]
[1750461802685,0.0605,2399.7,2399.1,4.92357794]
[1750461802932,17.93441049,2399.6,2399.5,4.1675349]
[1750461803131,17.76080377,2399.6,2399.5,4.1675349]
[1750461803331,17.99528066,2399.6,2399.5,4.1675349]
[1750461804123,17.60368176,2399.6,2399.5,4.1675349]
[1750461804463,17.9933607,2399.6,2399.5,4.1675349]
[1750461805042,17.75888381,2399.6,2399.5,4.1675349]
[1750461805842,10.0,2399.5,2399.3,4.16777844]
[1750461806159,7.81018481,2399.4,2399.3,4.16777844]
[1750461807029,7.74968481,2399.4,2399.3,4.16777844]
[1750461807931,7.74895162,2399.4,2399.3,4.16777844]
[1750461808134,0.82995162,2399.4,2399.3,5.77405932]
[1750461808465,0.0605,2399.9,2399.8,4.16701391]
[1750461808642,7.75636184,2399.9,2399.8,4.16701391]
[1750461809036,7.69586184,2399.9,2399.8,4.16701391]
[1750461810040,6.918,2399.9,2399.8,4.16701391]
[1750461810245,7.69594238,2399.9,2399.8,4.16701391]
[1750461813647,7.69600282,2399.9,2399.8,4.16701391]
[1750461814254,7.6959876,2399.9,2399.8,4.16701391]
[1750461815246,7.80897537,2399.9,2399.8,4.16701391]
[1750461817534,0.0609,2399.7,2399.2,0.7643]
[1750461817739,10.0609,2399.5,2399.4,4.16756409]
[1750461817934,10.7779876,2399.5,2399.4,4.16756409]
[1750461818370,10.8388876,2399.5,2399.4,4.16756409]
[1750461819066,10.4498938,2399.5,2399.4,4.16756409]
[1750461819279,10.83907433,2399.5,2399.4,4.16756409]
[1750461820177,13.20616382,2399.5,2399.4,4.16756409]
[1750461820376,13.26706382,2399.5,2399.4,4.16756409]
[1750461820588,12.87788329,2399.5,2399.4,4.16756409]
[1750461820752,12.87788329,2399.5,2398.6,0.7643]
[1750461820753,0.0609,2399.4,2398.6,0.7643]
[1750461820949,10.0,2399.2,2399.1,4.16809819]
[1750461821174,10.0609,2399.2,2399.1,4.16809819]
[1750461821350,10.7525,2399.2,2399.0,4.16837073]
[1750461821569,17.02900708,2399.1,2399.0,4.16837073]
[1750461821738,16.9769,2399.1,2399.0,4.16837073]
[1750461822150,0.0609,2398.9,2398.3,3.25033859]
[1750461822342,17.75447673,2398.8,2398.7,4.16892483]
[1750461822541,17.75447673,2398.8,2398.1,4.19081333]
[1750461822542,0.0609,2398.6,2398.5,4.16927246]
[1750461822771,17.74569324,2398.6,2398.5,4.16927246]
[1750461822938,17.69357673,2398.6,2398.5,4.16927246]
[1750461823285,17.30478815,2398.6,2398.5,4.16927246]
[1750461823783,16.916,2398.6,2398.5,4.16927246]
[1750461824089,10.0,2398.6,2398.5,4.16927246]
[1750461825178,10.0,2398.6,2398.5,5.88834231]
[1750461825587,0.821,2399.2,2399.0,4.1684035]
[1750461825785,7.6523925,2399.6,2399.4,4.16770859]
[1750461825786,0.05210575,2399.5,2399.4,4.16770859]
[1750461826081,0.05210575,2399.5,2399.3,4.16788229]
[1750461826082,10.0,2399.4,2399.3,4.16788229]
[1750461826281,2.652,2399.8,2399.2,4.16805601]
[1750461826448,2.652,2399.8,2399.7,4.16718756]
[1750461826651,2.624,2400.1,2400.0,4.16666666]
[1750461826866,8.747,2400.1,2400.0,4.16666666]
[1750461827237,18.747,2400.1,2400.0,4.16666666]
[1750461827575,10.8539,2400.3,2400.2,4.16631947]
[1750461827735,8.8079,2400.3,2400.2,4.16631947]
[1750461829063,1.831,2400.3,2400.2,4.16631947]
[1750461829270,0.84507908,2400.5,2400.4,4.16597233]
[1750461829458,0.2789253,2400.7,2400.6,4.16562526]
[1750461829658,17.58211521,2400.7,2400.6,4.16562526]
[1750461830874,7.58211521,2400.7,2400.6,4.16562526]
[1750461831049,7.63318709,2400.7,2400.6,4.16562526]
[1750461831382,7.52021521,2400.7,2400.6,4.16562526]
[1750461831582,7.57228709,2400.7,2400.6,4.16562526]
[1750461831769,7.96024357,2400.7,2400.6,4.16562526]
[1750461831971,0.0609,2400.6,2400.1,4.16649306]
[1750461832150,0.0609,2400.6,2400.5,4.16579879]
[1750461832151,0.44881044,2400.6,2400.5,4.16579879]
[1750461832356,7.68982872,2400.6,2400.5,4.16579879]
[1750461832664,7.3019072,2400.6,2400.5,4.16579879]
[1750461832846,7.68980551,2400.6,2400.5,4.16579879]
[1750461833052,7.68969938,2400.6,2400.5,4.16579879]
[1750461833251,7.68958628,2400.6,2400.5,4.16579879]
[1750461833452,7.30179218,2400.6,2400.5,4.16579879]
[1750461833652,7.3017642,2400.6,2400.5,4.16579879]
[1750461834186,7.30177529,2400.6,2400.5,4.16579879]
[1750461834700,7.75043515,2400.6,2400.4,4.16589428]
[1750461835000,0.43979552,2400.5,2400.4,4.16589428]
[1750461835890,0.43976319,2400.5,2400.4,4.16589428]
[1750461836051,0.43978702,2400.5,2400.4,4.16589428]
[1750461836257,0.43978795,2400.5,2400.4,4.16589428]
[1750461836680,0.43980019,2400.5,2400.4,4.16589428]
[1750461837105,19.62070449,2400.5,2400.1,4.16649306]
[1750461837261,7.36162599,2400.4,2400.3,4.16611801]
[1750461837892,7.36160657,2400.4,2400.3,4.16611801]
[1750461838460,7.41368419,2400.4,2400.3,4.16611801]
[1750461838868,7.41368253,2400.4,2400.3,4.16611801]
[1750461839491,7.41359359,2400.4,2400.3,4.16611801]
[1750461839693,7.41359359,2400.4,2400.2,4.16631036]
[1750461839694,0.8196,2400.3,2400.2,4.16621723]
[1750461839869,1.20718237,2400.3,2400.2,4.16621723]
[1750461840779,0.44852698,2400.3,2400.2,4.16621723]
[1750461840971,0.43970592,2400.3,2400.2,4.16621723]
[1750461841496,0.50060592,2400.3,2400.2,4.16621723]
[1750461841694,0.43970592,2400.3,2400.2,4.16621723]
[1750461841867,0.05207894,2400.3,2400.2,4.16621723]
[1750461843596,6.912,2400.3,2400.2,4.16621723]
[1750461844385,16.912,2400.3,2400.2,4.16621723]
[1750461844866,6.911,2400.3,2400.2,4.16631947]
[1750461845195,6.911,2400.3,2400.2,5.08743231]
[1750461845363,10.0,2400.6,2400.5,4.16579879]
[1750461845565,16.911,2400.6,2400.5,4.16579879]
[1750461846288,16.911,2400.6,2400.5,4.98309879]
[1750461846601,16.911,2400.6,2400.5,5.04419879]
[1750461846894,12.0450253,2400.7,2400.6,4.16562526]
[1750461847100,18.9560253,2400.7,2400.6,4.16562526]
[1750461848403,18.9560253,2400.7,2400.6,4.22672526]
[1750461848805,17.1290253,2400.7,2400.6,4.22672526]
[1750461849600,17.1290253,2400.7,2400.6,4.16562526]
[1750461850306,17.1290253,2400.7,2400.5,4.98309879]
[1750461850307,17.1290253,2400.7,2400.3,4.16611776]
[1750461850606,17.1290253,2400.7,2400.2,0.7972]
[1750461850607,17.1290253,2400.7,2400.6,4.16562526]
[1750461850817,0.0595,2400.6,2400.2,4.16629656]
[1750461850964,10.0595,2400.4,2400.2,4.16622929]
[1750461851169,6.9695,2400.3,2400.2,4.16622929]
[1750461851407,6.91,2400.3,2400.2,4.16622929]
[1750461852221,6.9695,2400.3,2400.2,4.16622929]
[1750461852942,6.91,2400.3,2400.2,4.16622929]
[1750461853235,6.91,2400.3,2400.2,4.99949893]
[1750461854501,0.05207831,2400.5,2400.2,4.99949893]
[1750461854502,0.05207831,2400.5,2400.4,4.16597233]
[1750461854708,17.68679548,2400.5,2400.4,4.16597233]
[1750461855023,16.9695,2400.5,2400.4,4.16597233]
[1750461855203,17.74629348,2400.5,2400.4,4.16597233]
[1750461855632,10.0,2400.4,2400.3,4.16605727]
[1750461855837,0.77841451,2400.4,2400.3,4.16605727]
[1750461856531,1.64981451,2400.4,2400.3,4.16605727]
[1750461856739,7.68841451,2400.4,2400.3,4.16605727]
[1750461856950,0.77841451,2400.4,2400.3,5.86738916]
[1750461857246,0.77962704,2400.4,2400.3,5.86738916]
[1750461857451,6.91,2400.5,2400.4,4.16597233]
[1750461857742,7.68991638,2400.5,2400.4,4.16597233]
[1750461857936,0.77991638,2400.5,2400.4,4.22707233]
[1750461858104,0.77991638,2400.5,2400.4,5.66782327]
[1750461858299,0.77994337,2400.5,2400.4,5.66782327]
[1750461858528,0.77994337,2400.5,2400.4,6.47482327]
[1750461858927,0.7800274,2400.5,2400.4,6.47482327]
[1750461859333,0.3899844,2400.5,2400.4,6.47482327]
[1750461859501,0.2180253,2400.7,2400.6,4.16562526]
[1750461859703,0.99809526,2400.7,2400.6,6.52902297]
[1750461860235,0.2180253,2400.7,2400.6,6.50823744]
[1750461860536,0.60804515,2400.7,2400.6,6.50823744]
[1750461861328,0.2180253,2400.7,2400.6,17.52711699]
[1750461861501,0.2180253,2400.7,2400.6,6.44713744]
[1750461861825,0.2180253,2400.7,2400.6,6.50823744]
[1750461862431,0.2180253,2400.7,2400.6,6.52901501]
[1750461862638,0.2180253,2400.7,2400.6,13.43801501]
[1750461862841,0.2180253,2400.7,2400.6,13.82610051]
[1750461863707,0.2180253,2400.7,2400.6,25.37419821]
[1750461872447,0.2180253,2400.7,2400.6,27.19719821]
[1750461874018,0.2180253,2400.7,2400.6,6.04900051]
[1750461874234,0.2180253,2400.7,2400.6,13.01560051]
[1750461875156,0.2180253,2400.7,2400.6,13.81760051]
[1750461878870,0.2180253,2400.7,2400.6,14.36760051]
[1750461882964,0.2180253,2400.7,2400.6,22.00041968]
[1750461891800,0.0622,2402.0,2401.2,4.16458437]
[1750461891987,0.8818,2401.7,2401.6,4.16389073]
[1750461892183,1.66189808,2401.7,2401.6,4.16389073]
[1750461893555,1.66212299,2401.7,2401.6,4.16389073]
[1750461893785,1.6619569,2401.7,2401.6,4.16389073]
[1750461894096,1.6024569,2401.7,2401.6,4.16389073]
[1750461894392,1.21240918,2401.7,2401.6,4.16389073]
[1750461894594,1.60252217,2401.7,2401.6,4.16389073]
[1750461894795,0.804,2401.4,2401.0,4.16488543]
[1750461894958,0.7802345,2401.3,2401.2,4.16458437]
[1750461895158,0.84248471,2401.3,2401.2,4.16458437]
[1750461895387,13.09733057,2401.3,2401.2,4.16458437]
[1750461895584,13.04527401,2401.3,2401.2,4.16458437]
[1750461895780,13.04492533,2401.3,2401.2,4.16458437]
[1750461896179,13.04492895,2401.3,2401.2,4.16458437]
[1750461896381,13.04491875,2401.3,2401.2,4.16458437]
[1750461896587,13.04487509,2401.3,2401.2,4.16458437]
[1750461897098,19.71585597,2401.3,2401.2,4.16458437]
[1750461897403,11.64620712,2401.3,2401.2,4.16458437]
[1750461897558,11.64615756,2401.3,2401.2,4.16458437]
[1750461897758,1.64615756,2401.3,2401.2,4.16458437]
[1750461897969,0.77993046,2401.3,2401.2,4.16458437]
[1750461898176,0.77993046,2401.3,2401.2,4.18534378]
[1750461898908,0.38997338,2401.3,2401.2,4.18534378]
[1750461899111,0.38997338,2401.3,2401.2,4.16458437]
[1750461899299,0.38997338,2401.3,2401.2,4.18534311]
[1750461899801,0.8895,2401.5,2401.4,4.16423752]
[1750461899974,1.66936592,2401.5,2401.4,4.16423752]
[1750461900307,0.84206592,2401.5,2401.4,4.16423752]
[1750461900472,0.8895,2401.7,2401.6,4.16389073]
[1750461900667,1.6692794,2401.7,2401.6,4.16389073]
[1750461900908,1.27938881,2401.7,2401.6,4.16389073]
[1750461901207,10.8895,2401.9,2401.8,4.163544]
[1750461901414,11.66923745,2401.9,2401.8,4.163544]
[1750461901784,1.27936868,2401.9,2401.8,4.163544]
[1750461901992,11.66923725,2401.9,2401.8,4.163544]
[1750461902313,11.66923719,2401.9,2401.8,4.163544]
[1750461902513,0.0572,2401.7,2401.0,6.904]
[1750461902712,0.0572,2401.7,2401.6,4.16389073]
[1750461902891,1.66423176,2401.7,2401.6,4.16389073]
[1750461903789,1.66413592,2401.7,2401.6,4.16389073]
[1750461904118,1.66404038,2401.7,2401.6,4.16389073]
[1750461904480,1.66403934,2401.7,2401.6,4.16389073]
[1750461904990,1.66403877,2401.7,2401.6,4.16389073]
[1750461905185,1.823,2402.2,2402.0,4.16319733]
[1750461905186,0.7892,2402.1,2402.0,4.16319733]
[1750461905412,8.53262118,2402.1,2402.0,4.16319733]
[1750461905717,8.53261171,2402.1,2402.0,4.16319733]
[1750461905892,8.5326124,2402.1,2402.0,4.16319733]
[1750461906413,8.14301151,2402.1,2402.0,4.16319733]
[1750461906616,9.52919822,2402.1,2402.0,4.16319733]
[1750461906779,9.5292178,2402.1,2402.0,4.16319733]
[1750461907210,9.5292105,2402.1,2402.0,4.16319733]
[1750461907384,11.34922107,2402.1,2402.0,4.16319733]
[1750461907591,8.52961992,2402.1,2402.0,4.16319733]
[1750461908518,7.7504,2402.1,2402.0,4.16319733]
[1750461908825,8.52916632,2402.1,2402.0,4.16319733]
[1750461909130,8.5291666,2402.1,2402.0,4.16319733]
[1750461909619,8.52916664,2402.1,2402.0,4.16319733]
[1750461909795,8.13978334,2402.1,2402.0,4.16319733]
[1750461909996,8.52916564,2402.1,2402.0,4.16319733]
[1750461910394,8.52916607,2402.1,2402.0,4.16319733]
[1750461910917,8.13978273,2402.1,2402.0,4.16319733]
[1750461911092,8.52917615,2402.1,2402.0,4.16319733]
[1750461911298,8.52917703,2402.1,2402.0,4.16319733]
[1750461911498,8.5291887,2402.1,2402.0,4.16319733]
[1750461912615,0.0572,2401.9,2401.8,4.163544]
[1750461912789,1.69203913,2401.9,2401.8,4.163544]
[1750461913883,1.69196699,2401.9,2401.8,4.163544]
[1750461914421,1.69206195,2401.9,2401.8,4.163544]
[1750461914781,1.69201889,2401.9,2401.8,4.163544]
[1750461915818,18.59401889,2401.9,2401.8,4.163544]
[1750461916120,18.54197414,2401.9,2401.8,4.163544]
[1750461916321,18.54196701,2401.9,2401.8,4.163544]
[1750461916987,18.15260841,2401.9,2401.8,4.163544]
[1750461917187,20.02853908,2401.9,2401.8,4.163544]
[1750461918221,0.8456,2401.7,2400.7,4.95140356]
[1750461918420,0.0572,2401.4,2401.3,4.16425001]
[1750461918629,3.66095872,2401.4,2401.3,4.16425001]
[1750461919120,3.66096818,2401.4,2401.3,4.16425001]
[1750461919321,3.66111995,2401.4,2401.3,4.16425001]
[1750461919530,3.66104617,2401.4,2401.3,4.16425001]
[1750461919890,3.66104591,2401.4,2401.3,4.16425001]
[1750461920091,3.66096566,2401.4,2401.3,4.16425001]
[1750461920517,0.0572,2401.3,2400.6,4.16562526]
[1750461920685,10.0572,2401.1,2401.0,4.16493127]
[1750461921022,10.83590841,2401.1,2401.0,4.16493127]
[1750461921190,10.8358693,2401.1,2401.0,4.16493127]
[1750461921741,10.83582,2401.1,2401.0,4.16493127]
[1750461922422,10.83582091,2401.1,2401.0,4.16493127]
[1750461923218,10.44653418,2401.1,2401.0,4.16493127]
[1750461923420,10.83555631,2401.1,2401.0,4.16493127]
[1750461923721,10.83517553,2401.1,2400.9,4.16502662]
[1750461924020,17.79023946,2401.0,2400.9,4.16502662]
[1750461924212,17.73809068,2401.0,2400.9,4.16502662]
[1750461924414,10.83509068,2401.0,2400.9,4.16502662]
[1750461924619,17.73707331,2401.0,2400.9,4.16502662]
[1750461924926,17.73707576,2401.0,2400.9,4.16502662]
[1750461925126,17.73707858,2401.0,2400.9,4.16502662]
[1750461925325,17.73707993,2401.0,2400.9,4.16502662]
[1750461925504,17.7368902,2401.0,2400.9,4.16502662]
[1750461925906,17.73669824,2401.0,2400.9,4.16502662]
[1750461926298,17.34795048,2401.0,2400.9,4.16502662]
[1750461926498,17.73669063,2401.0,2400.9,4.16502662]
[1750461927402,17.73669513,2401.0,2400.9,4.16502662]
[1750461927631,17.73668922,2401.0,2400.9,4.16502662]
[1750461927938,17.73669172,2401.0,2400.9,4.16502662]
[1750461928144,0.7851,2401.8,2401.7,4.16371736]
[1750461928317,6.903,2402.0,2401.9,4.16337066]
[1750461928521,7.73745162,2402.0,2401.9,4.16337066]
[1750461928721,7.73718576,2402.0,2401.9,4.16337066]
[1750461929040,7.73727248,2402.0,2401.9,4.16337066]
[1750461929215,7.73735725,2402.0,2401.9,4.16337066]
[1750461930023,7.68016879,2402.0,2401.9,4.16337066]
[1750461930518,7.68017381,2402.0,2401.9,4.16337066]
[1750461930724,7.68017539,2402.0,2401.9,4.16337066]
[1750461931234,7.68025906,2402.0,2401.9,4.16337066]
[1750461931629,7.68025677,2402.0,2401.9,4.16337066]
[1750461932249,7.35066623,2402.0,2401.9,4.16337066]
[1750461932452,7.73934223,2402.0,2401.9,4.16337066]
[1750461932612,7.73935059,2402.0,2401.9,4.16337066]
[1750461933049,7.73926025,2402.0,2401.9,4.16337066]
[1750461934945,7.35058566,2402.0,2401.9,4.16337066]
[1750461935143,7.6792561,2402.0,2401.9,4.16337066]
[1750461935862,7.67916901,2402.0,2401.9,4.16337066]
[1750461936156,7.679221,2402.0,2401.9,4.16337066]
[1750461936355,7.29063534,2402.0,2401.9,4.16337066]
[1750461936524,7.67927237,2402.0,2401.9,4.16337066]
[1750461937056,7.67927336,2402.0,2401.9,4.16337066]
[1750461937263,0.059,2402.2,2402.1,4.16302402]
[1750461937440,7.7382599,2402.2,2402.1,4.16302402]
[1750461937633,17.7382599,2402.2,2402.1,4.16302402]
[1750461938054,7.7382599,2402.2,2402.1,4.16302402]
[1750461938658,7.73826063,2402.2,2402.1,4.16302402]
[1750461939162,7.7382576,2402.2,2402.1,4.16302402]
[1750461940165,7.73825795,2402.2,2402.1,4.16302402]
[1750461941629,7.73825823,2402.2,2402.1,4.16302402]
[1750461942459,7.34962925,2402.2,2402.1,4.16302402]
[1750461942663,7.79029683,2402.2,2402.1,4.16302402]
[1750461943050,7.79030007,2402.2,2402.1,4.16302402]
[1750461943255,7.79030532,2402.2,2402.1,4.16302402]
[1750461943453,7.79030885,2402.2,2402.1,4.16302402]
[1750461943836,7.79030856,2402.2,2402.1,4.16302402]
[1750461944366,0.059,2402.1,2402.0,4.16319733]
[1750461944667,0.83622979,2402.1,2402.0,4.16319733]
[1750461945438,0.8361916,2402.1,2402.0,4.16319733]
[1750461945662,0.88823483,2402.1,2402.0,4.16319733]
[1750461945849,0.88821717,2402.1,2402.0,4.16319733]
[1750461946061,0.4996302,2402.1,2402.0,4.16319733]
[1750461946260,0.88821944,2402.1,2402.0,4.16319733]
[1750461946746,0.88822174,2402.1,2402.0,4.16319733]
[1750461946951,0.88822342,2402.1,2402.0,4.16319733]
[1750461947351,0.82914001,2402.1,2402.0,4.16319733]
[1750461947556,0.82913511,2402.1,2402.0,4.16319733]
[1750461947746,10.82912778,2402.1,2402.0,4.16319733]
[1750461947945,10.38854106,2402.1,2402.0,4.16319733]
[1750461948150,10.83608382,2402.1,2402.0,4.16319733]
[1750461948775,10.8360842,2402.1,2402.0,4.16319733]
[1750461949673,10.83608353,2402.1,2402.0,4.16319733]
[1750461951576,10.83621332,2402.1,2402.0,4.16319733]
[1750461951874,10.83621335,2402.1,2402.0,4.16319733]
[1750461952169,10.83621429,2402.1,2402.0,4.16319733]
[1750461952471,10.77721518,2402.1,2402.0,4.16319733]
[1750461952675,10.77721483,2402.1,2402.0,4.16319733]
[1750461952853,10.77755629,2402.1,2402.0,4.16319733]
[1750461953175,10.83655629,2402.1,2402.0,4.16319733]
[1750461953778,10.4480118,2402.1,2402.0,4.16319733]
[1750461953977,10.77802928,2402.1,2402.0,4.16319733]
[1750461954486,10.7781616,2402.1,2402.0,4.16319733]
[1750461955671,11.0122402,2402.1,2402.0,4.16319733]
[1750461955974,11.01434712,2402.1,2402.0,4.16319733]
[1750461956172,11.01434714,2402.1,2402.0,4.16319733]
[1750461956360,10.62421361,2402.1,2402.0,4.16319733]
[1750461956679,11.0143471,2402.1,2402.0,4.16319733]
[1750461957353,11.01434705,2402.1,2402.0,4.16319733]
[1750461958078,0.62422276,2402.1,2402.0,4.95179733]
[1750461958281,0.78024885,2402.1,2402.0,5.93106755]
[1750461958649,0.78023668,2402.1,2402.0,5.93106755]
[1750461959302,0.78020212,2402.1,2402.0,5.93106755]
[1750461959454,0.78020212,2402.1,2402.0,5.86946755]
[1750461959860,6.898,2402.2,2402.1,4.16302402]
[1750461960178,12.44580087,2402.4,2402.3,4.16267743]
[1750461960384,20.12400925,2402.4,2402.3,4.16267743]
[1750461961454,20.12357081,2402.4,2402.3,4.16267743]
[1750461961763,20.12357068,2402.4,2402.3,4.16267743]
[1750461961962,19.73368491,2402.4,2402.3,4.16267743]
[1750461962165,20.12357246,2402.4,2402.3,4.16267743]
[1750461962353,20.41930517,2402.4,2402.3,4.16267743]
[1750461962548,19.40560087,2402.4,2402.3,4.16267743]
[1750461962754,20.41932238,2402.4,2402.3,4.16267743]
[1750461962977,20.18538666,2402.4,2402.3,4.16267743]
[1750461963177,20.1234799,2402.4,2402.3,4.16267743]
[1750461963356,0.0618,2402.3,2401.9,4.16334669]
[1750461963684,0.0618,2402.0,2401.8,4.16350166]
[1750461963851,7.67659637,2401.9,2401.8,4.16350166]
[1750461964355,7.67670308,2401.9,2401.8,4.16350166]
[1750461964556,7.67670308,2401.9,2401.8,5.07233561]
[1750461964974,7.67668731,2401.9,2401.8,5.07233561]
[1750461965157,7.67668785,2401.9,2401.8,5.07233561]
[1750461965360,7.67668692,2401.9,2401.8,5.07233561]
[1750461965587,7.6767737,2401.9,2401.8,5.07233561]
[1750461966209,7.67679724,2401.9,2401.8,5.07233561]
[1750461967192,7.67680043,2401.9,2401.8,5.07233561]
[1750461967393,7.67680001,2401.9,2401.8,5.07233561]
[1750461967594,7.67682424,2401.9,2401.8,5.07233561]
[1750461968386,7.67683634,2401.9,2401.8,5.07233561]
[1750461968596,7.67682036,2401.9,2401.8,5.07233561]
[1750461969518,7.73862038,2401.9,2401.7,4.16371249]
[1750461969685,0.77982865,2401.8,2401.7,4.16371249]
[1750461970092,0.38991661,2401.8,2401.7,4.16371249]
[1750461970410,0.77982943,2401.8,2401.7,4.16371249]
[1750461971114,0.77982943,2401.8,2401.1,9.45381917]
[1750461971115,18.4744486,2401.8,2401.2,0.8069]
[1750461971428,18.4744486,2401.8,2401.4,4.1641486]
[1750461971429,0.0618,2401.6,2401.4,4.1641486]
[1750461971723,7.67588342,2401.5,2401.4,4.1641486]
[1750461972897,7.67588342,2401.5,2401.2,4.97133989]
[1750461973097,7.67588342,2401.5,2401.3,4.16431725]
[1750461973098,0.77988342,2401.4,2401.3,4.16431725]
[1750461973624,0.77966372,2401.4,2401.3,4.16431725]
[1750461974189,0.77966117,2401.4,2401.3,4.16431725]
[1750461974603,0.77942689,2401.4,2401.3,4.16431725]
[1750461975086,0.77944122,2401.4,2401.3,4.16431725]
[1750461976125,0.77942757,2401.4,2401.3,4.16431725]
[1750461976706,0.77880542,2401.4,2401.3,4.16431725]
[1750461976901,16.896,2401.5,2401.4,4.16423752]
[1750461977122,10.0,2401.4,2401.0,4.16480961]
[1750461977326,0.0618,2401.2,2401.0,4.16493127]
[1750461977625,16.9568,2401.2,2401.1,4.16475781]
[1750461977826,17.73541429,2401.2,2401.1,4.16475781]
[1750461978397,17.73541138,2401.2,2401.1,4.16475781]
[1750461978729,17.34610569,2401.2,2401.1,4.16475781]
[1750461979033,17.73541741,2401.2,2401.1,4.16475781]
[1750461979233,17.73480159,2401.2,2401.1,4.16475781]
[1750461979527,17.73479898,2401.2,2401.1,4.16475781]
[1750461979728,16.9568,2401.2,2401.1,4.16475781]
[1750461979922,17.73480334,2401.2,2401.1,4.16475781]
[1750461980234,17.73472748,2401.2,2401.1,4.16475781]
[1750461980533,17.73472746,2401.2,2401.1,4.16475781]
[1750461980830,17.34572579,2401.2,2401.1,4.16475781]
[1750461981010,17.7346608,2401.2,2401.1,4.16475781]
[1750461981208,17.73467071,2401.2,2401.1,4.16475781]
[1750461981407,17.734671,2401.2,2401.1,4.16475781]
[1750461982135,17.73467071,2401.2,2401.1,4.16475781]
[1750461982628,16.895,2401.2,2401.1,4.16475781]
[1750461982795,17.67253136,2401.2,2401.1,4.16475781]
[1750461983200,17.67239286,2401.2,2401.1,4.16475781]
[1750461983931,17.67223892,2401.2,2401.1,4.16475781]
[1750461984113,17.67223898,2401.2,2401.1,4.16475781]
[1750461984526,17.67211638,2401.2,2401.1,4.16475781]
[1750461984931,0.77711634,2401.2,2401.1,13.46374569]
[1750461985131,2.594,2402.1,2402.0,4.16319733]
[1750461985329,9.4899361,2402.1,2402.0,4.16319733]
[1750461985536,19.48993182,2402.1,2402.0,4.16319733]
[1750461985720,19.4899074,2402.1,2402.0,4.16319733]
[1750461986031,19.4899074,2402.1,2402.0,4.91619733]
[1750461986032,0.7769074,2402.1,2402.0,4.91619733]
[1750461986235,6.895,2402.3,2402.2,4.16285072]
[1750461986556,17.28340305,2402.3,2402.2,4.16285072]
[1750461986865,17.67179343,2402.3,2402.2,4.16285072]
[1750461987743,17.67172814,2402.3,2402.2,4.16285072]
[1750461988213,17.67172993,2402.3,2402.2,4.16285072]
[1750461988404,17.67165434,2402.3,2402.2,4.16285072]
[1750461988736,17.67065434,2402.3,2402.2,4.16285072]
[1750461989238,0.77664857,2402.3,2402.2,5.07073584]
[1750461989540,2.44580087,2402.4,2402.3,4.16267743]
[1750461989704,12.83401541,2402.4,2402.3,4.16267743]
[1750461989905,2.83401541,2402.4,2402.3,4.16267743]
[1750461990104,2.83401294,2402.4,2402.3,4.16267743]
[1750461990335,3.22229299,2402.4,2402.3,4.16267743]
[1750461990937,10.11529299,2402.4,2402.3,4.16267743]
[1750461991433,10.11537329,2402.4,2402.3,4.16267743]
[1750461992335,10.11537307,2402.4,2402.3,4.16267743]
[1750461992518,10.11537242,2402.4,2402.3,4.16267743]
[1750461992713,0.0585,2402.3,2402.0,4.16310492]
[1750461992925,18.48317155,2402.2,2402.1,4.16290519]
[1750461993445,18.48318119,2402.2,2402.1,4.16290519]
[1750461993648,18.483192,2402.2,2402.1,4.16290519]
[1750461993848,10.776592,2402.2,2402.1,4.16302402]
[1750461994049,17.280296,2402.2,2402.1,5.7688376]
[1750461994346,17.28027731,2402.2,2402.1,5.7688376]
[1750461994517,17.28027731,2402.2,2402.1,5.8276376]
[1750461994704,17.28027388,2402.2,2402.1,5.8276376]
[1750461995144,17.28027105,2402.2,2402.1,5.8276376]
[1750461995658,17.28027105,2402.2,2402.1,5.7688376]
[1750461995808,17.28027105,2402.2,2402.1,4.93622402]
[1750461996202,7.28015992,2402.2,2402.1,4.99502402]
[1750461997052,6.892,2402.2,2402.1,4.99502402]
[1750461997216,0.38814602,2402.2,2402.1,4.93622402]
[1750461997422,6.892,2402.3,2402.2,4.16285072]
[1750461997761,2.44580087,2402.4,2402.3,4.22147743]
[1750461997971,9.72591093,2402.4,2402.3,4.22147743]
[1750461998420,9.33780087,2402.4,2402.3,4.22147743]
[1750461998748,9.33780087,2402.4,2402.3,5.64452601]
[1750461999259,9.72562957,2402.4,2402.3,5.58572601]
[1750461999466,9.72566314,2402.4,2402.3,5.58572601]
[1750461999672,9.72566314,2402.4,2402.3,4.16267743]
[1750461999968,9.33780087,2402.4,2402.3,4.16267743]
[1750462000365,9.72564519,2402.4,2402.3,4.16267743]
[1750462000867,9.78414787,2402.4,2402.3,4.16267743]
[1750462001260,9.78416381,2402.4,2402.3,4.16267743]
[1750462001448,19.78416381,2402.4,2402.3,4.16267743]
[1750462001769,20.17190497,2402.4,2402.3,4.16267743]
[1750462002170,20.17192436,2402.4,2402.3,4.16267743]
[1750462002463,20.1718196,2402.4,2402.3,4.16267743]
[1750462002881,20.17182871,2402.4,2402.3,4.16267743]
[1750462003241,20.17182875,2402.4,2402.3,4.16267743]
[1750462003681,23.20909354,2402.4,2402.3,4.16267743]
[1750462003880,23.20909354,2402.4,2402.1,4.16292249]
[1750462003881,10.0,2402.3,2402.2,4.16275862]
[1750462004087,23.20909354,2402.4,2402.3,4.16267743]